[Event "Top 12 Féminin 2026"]
[Site "Asnières-sur-Seine, France"]
[Date "2026.05.16"]
[Round "4.15"]
[White "Sterpu, Constanta-Andreea"]
[Black "Carnet, Anaelle"]
[Result "1-0"]
[TimeControl "1h30 / 40 moves + 30m + 30sec/move"]
[WhiteTitle "-"]
[BlackTitle "-"]
[WhiteFideId "-"]
[BlackFideId "-"]
[WhiteElo "1984"]
[BlackElo "1786"]

1. d4 {[%clk 01:30:54]} {[%emt 00:00:05]} d5 {[%clk 01:30:56]} {[%emt
00:00:05]} 2. Nf3 {[%clk 01:31:20]} {[%emt 00:00:04]} e6 {[%clk 01:31:19]}
{[%emt 00:00:07]} 3. e3 {[%clk 01:31:45]} {[%emt 00:00:05]} Nf6 {[%clk
01:31:42]} {[%emt 00:00:07]} 4. Bd3 {[%clk 01:31:53]} {[%emt 00:00:22]} Be7
{[%clk 01:32:07]} {[%emt 00:00:05]} 5. O-O {[%clk 01:32:11]} {[%emt 00:00:12]}
O-O {[%clk 01:32:31]} {[%emt 00:00:06]} 6. b3 {[%clk 01:29:52]} {[%emt
00:02:49]} b6 {[%clk 01:32:53]} {[%emt 00:00:08]} 7. c4 {[%clk 01:29:02]}
{[%emt 00:01:20]} Bb7 {[%clk 01:30:00]} {[%emt 00:03:23]} 8. Nc3 {[%clk
01:26:15]} {[%emt 00:03:17]} c5 {[%clk 01:28:29]} {[%emt 00:02:01]} 9. dxc5
{[%clk 01:24:55]} {[%emt 00:01:51]} Bxc5 {[%clk 01:25:51]} {[%emt 00:03:07]} 10.
Qe2 {[%clk 01:24:15]} {[%emt 00:01:10]} Nc6 {[%clk 01:23:40]} {[%emt 00:02:41]}
11. Rd1 {[%clk 01:19:20]} {[%emt 00:05:25]} Qe7 {[%clk 01:12:07]} {[%emt
00:12:03]} 12. cxd5 {[%clk 01:09:01]} {[%emt 00:10:49]} Nxd5 {[%clk 01:06:32]}
{[%emt 00:06:05]} 13. Nxd5 {[%clk 01:08:58]} {[%emt 00:00:33]} exd5 {[%clk
01:05:50]} {[%emt 00:01:11]} 14. Bb2 {[%clk 01:08:25]} {[%emt 00:01:04]} Rad8
{[%clk 01:02:39]} {[%emt 00:03:41]} 15. a3 {[%clk 00:53:04]} {[%emt 00:15:53]}
Rfe8 {[%clk 00:56:46]} {[%emt 00:06:22]} 16. b4 {[%clk 00:47:36]} {[%emt
00:05:58]} Bd6 {[%clk 00:56:12]} {[%emt 00:01:03]} 17. Qc2 {[%clk 00:47:42]}
{[%emt 00:00:25]} h6 {[%clk 00:53:14]} {[%emt 00:03:28]} 18. Bb5 {[%clk
00:46:40]} {[%emt 00:01:32]} Rc8 {[%clk 00:47:47]} {[%emt 00:05:57]} 19. Qf5
{[%clk 00:42:43]} {[%emt 00:04:27]} Red8 {[%clk 00:39:01]} {[%emt 00:09:15]} 20.
Bd3 {[%clk 00:24:29]} {[%emt 00:18:44]} g6 {[%clk 00:34:31]} {[%emt 00:04:59]}
21. Qh3 {[%clk 00:24:53]} {[%emt 00:00:07]} h5 {[%clk 00:29:23]} {[%emt
00:05:38]} 22. Nh4 {[%clk 00:02:46]} {[%emt 00:22:38]} Qg5 {[%clk 00:20:01]}
{[%emt 00:09:52]} 23. f4 {[%clk 00:02:58]} {[%emt 00:00:19]} Qg4 {[%clk
00:17:51]} {[%emt 00:02:39]} 24. Qxg4 {[%clk 00:03:10]} {[%emt 00:00:17]} hxg4
{[%clk 00:18:19]} {[%emt 00:00:03]} 25. Be2 {[%clk 00:03:04]} {[%emt 00:00:35]}
Be7 {[%clk 00:16:02]} {[%emt 00:02:47]} 26. g3 {[%clk 00:03:14]} {[%emt
00:00:21]} Bxh4 {[%clk 00:14:41]} {[%emt 00:01:51]} 27. gxh4 {[%clk 00:03:39]}
{[%emt 00:00:04]} f5 {[%clk 00:14:48]} {[%emt 00:00:24]} 28. Kf2 {[%clk
00:03:05]} {[%emt 00:01:05]} Kf7 {[%clk 00:14:32]} {[%emt 00:00:46]} 29. Bd3
{[%clk 00:02:53]} {[%emt 00:00:41]} Ke6 {[%clk 00:13:07]} {[%emt 00:01:55]} 30.
Rac1 {[%clk 00:02:48]} {[%emt 00:00:36]} Ne7 {[%clk 00:12:14]} {[%emt
00:01:22]} 31. Bb1 {[%clk 00:02:13]} {[%emt 00:01:05]} Rxc1 {[%clk 00:10:27]}
{[%emt 00:02:17]} 32. Rxc1 {[%clk 00:01:57]} {[%emt 00:00:46]} Rc8 {[%clk
00:10:27]} {[%emt 00:00:30]} 33. Rd1 {[%clk 00:02:16]} {[%emt 00:00:11]} Ng8
{[%clk 00:09:16]} {[%emt 00:01:40]} 34. Rd2 {[%clk 00:02:06]} {[%emt 00:00:41]}
Nf6 {[%clk 00:08:38]} {[%emt 00:01:08]} 35. Bd4 {[%clk 00:02:03]} {[%emt
00:00:32]} Ne4+ {[%clk 00:04:55]} {[%emt 00:04:14]} 36. Bxe4 {[%clk 00:02:28]}
{[%emt 00:00:05]} dxe4 {[%clk 00:05:05]} {[%emt 00:00:21]} 37. Be5 {[%clk
00:02:52]} {[%emt 00:00:06]} Bd5 {[%clk 00:04:21]} {[%emt 00:01:13]} 38. h3
{[%clk 00:02:44]} {[%emt 00:00:39]} gxh3 {[%clk 00:03:21]} {[%emt 00:01:31]} 39.
Kg3 {[%clk 00:03:10]} {[%emt 00:00:04]} b5 {[%clk 00:02:22]} {[%emt 00:01:29]}
40. Kxh3 {[%clk 00:03:26]} {[%emt 00:00:14]} a6 {[%clk 00:02:37]} {[%emt
00:00:16]} 41. h5 {[%clk 00:00:50]} {[%emt 00:03:05]} gxh5 {[%clk 00:00:49]}
{[%emt 00:02:18]} 42. Rg2 {[%clk 00:29:37]} {[%emt 00:01:43]} Rc6 {[%clk
00:25:44]} {[%emt 00:05:33]} 43. Kh4 {[%clk 00:25:27]} {[%emt 00:04:41]} Ke7
{[%clk 00:20:42]} {[%emt 00:05:31]} 44. Rg7+ {[%clk 00:21:46]} {[%emt
00:04:12]} Bf7 {[%clk 00:17:10]} {[%emt 00:04:03]} 45. Kg5 {[%clk 00:21:47]}
{[%emt 00:00:28]} h4 {[%clk 00:12:39]} {[%emt 00:05:01]} 46. Rh7 {[%clk
00:14:00]} {[%emt 00:08:17]} Rc2 {[%clk 00:08:02]} {[%emt 00:05:07]} 47. Kxf5
{[%clk 00:11:09]} {[%emt 00:03:22]} Rc6 {[%clk 00:02:54]} {[%emt 00:05:38]} 48.
Kxe4 {[%clk 00:10:47]} {[%emt 00:00:52]} Rc4+ {[%clk 00:02:27]} {[%emt
00:00:57]} 49. Bd4 {[%clk 00:10:42]} {[%emt 00:00:35]} Ke6 {[%clk 00:01:25]}
{[%emt 00:01:32]} 50. Rh6+ {[%clk 00:10:52]} {[%emt 00:00:20]} Ke7 {[%clk
00:01:44]} {[%emt 00:00:10]} 51. Rxh4 {[%clk 00:11:09]} {[%emt 00:00:14]} Bg6+
{[%clk 00:01:57]} {[%emt 00:00:18]} 52. f5 {[%clk 00:11:26]} {[%emt 00:00:13]}
Be8 {[%clk 00:02:16]} {[%emt 00:00:11]} 53. Ke5 {[%clk 00:11:46]} {[%emt
00:00:10]} Rc6 {[%clk 00:02:20]} {[%emt 00:00:26]} 54. Rh7+ {[%clk 00:11:26]}
{[%emt 00:00:49]} Kd8 {[%clk 00:02:27]} {[%emt 00:00:24]} 55. Bc5 {[%clk
00:11:38]} {[%emt 00:00:18]} Bd7 {[%clk 00:02:02]} {[%emt 00:00:55]} 56. e4
{[%clk 00:11:40]} {[%emt 00:00:28]} Kc7 {[%clk 00:02:03]} {[%emt 00:00:28]} 57.
Rh8 {[%clk 00:10:35]} {[%emt 00:01:35]} Kb7 {[%clk 00:02:04]} {[%emt 00:00:30]}
58. Bd6 {[%clk 00:09:35]} {[%emt 00:01:30]} Rc8 {[%clk 00:02:14]} {[%emt
00:00:20]} 59. Rxc8 {[%clk 00:09:26]} {[%emt 00:00:38]} Kxc8 {[%clk 00:02:40]}
{[%emt 00:00:05]} 60. f6 {[%clk 00:09:52]} {[%emt 00:00:04]} Be8 {[%clk
00:03:00]} {[%emt 00:00:10]} 61. Ke6 {[%clk 00:10:13]} {[%emt 00:00:08]} Kb7
{[%clk 00:03:20]} {[%emt 00:00:11]} 62. f7 {[%clk 00:10:34]} {[%emt 00:00:08]}
Bxf7+ {[%clk 00:03:47]} {[%emt 00:00:04]} 63. Kxf7 {[%clk 00:10:58]} {[%emt
00:00:05]} Kc6 {[%clk 00:04:15]} {[%emt 00:00:03]} 64. Bc5 {[%clk 00:11:16]}
{[%emt 00:00:12]} Kd7 {[%clk 00:04:38]} {[%emt 00:00:07]} 65. e5 {[%clk
00:11:40]} {[%emt 00:00:05]} Kd8 {[%clk 00:05:05]} {[%emt 00:00:04]} 66. e6
{[%clk 00:12:04]} {[%emt 00:00:06]} Kc7 {[%clk 00:05:32]} {[%emt 00:00:02]} 67.
e7 {[%clk 00:12:28]} {[%emt 00:00:06]} Kb7 {[%clk 00:05:54]} {[%emt 00:00:08]}
68. e8=Q {[%clk 00:12:41]} {[%emt 00:00:17]} Kc7 {[%clk 00:06:20]} {[%emt
00:00:04]} 69. Qe7+ {[%clk 00:12:57]} {[%emt 00:00:14]} Kc8 {[%clk 00:06:44]}
{[%emt 00:00:07]} 70. Bb6 {[%clk 00:13:16]} {[%emt 00:00:09]} a5 {[%clk
00:07:09]} {[%emt 00:00:07]} 71. Qc7# {[%emt 00:00:05]} 1-0

[Event "Top 12 Féminin 2026"]
[Site "Asnières-sur-Seine, France"]
[Date "2026.05.16"]
[Round "4.16"]
[White "Barbotte, Jeanne"]
[Black "Milojevic-Daim, Lola-Shaina"]
[Result "1/2-1/2"]
[TimeControl "1h30 / 40 moves + 30m + 30sec/move"]
[WhiteTitle "-"]
[BlackTitle "-"]
[WhiteFideId "-"]
[BlackFideId "-"]
[WhiteElo "1860"]
[BlackElo "1950"]

1. e4 {[%clk 01:29:52]} {[%emt 00:01:06]} c6 {[%clk 01:30:54]} {[%emt
00:00:07]} 2. d4 {[%clk 01:30:15]} {[%emt 00:00:07]} d5 {[%clk 01:31:10]}
{[%emt 00:00:14]} 3. Nc3 {[%clk 01:30:39]} {[%emt 00:00:06]} dxe4 {[%clk
01:31:31]} {[%emt 00:00:08]} 4. Nxe4 {[%clk 01:31:02]} {[%emt 00:00:07]} Nf6
{[%clk 01:31:45]} {[%emt 00:00:16]} 5. Nxf6+ {[%clk 01:31:14]} {[%emt
00:00:17]} exf6 {[%clk 01:32:04]} {[%emt 00:00:13]} 6. c3 {[%clk 01:31:34]}
{[%emt 00:00:10]} Bd6 {[%clk 01:32:06]} {[%emt 00:00:28]} 7. Bd3 {[%clk
01:31:48]} {[%emt 00:00:16]} O-O {[%clk 01:30:00]} {[%emt 00:02:35]} 8. Qc2
{[%clk 01:31:58]} {[%emt 00:00:21]} Re8+ {[%clk 01:29:22]} {[%emt 00:01:08]} 9.
Ne2 {[%clk 01:32:09]} {[%emt 00:00:18]} h5 {[%clk 01:28:21]} {[%emt 00:01:31]}
10. Be3 {[%clk 01:31:51]} {[%emt 00:00:48]} Nd7 {[%clk 01:27:23]} {[%emt
00:01:28]} 11. O-O-O {[%clk 01:31:54]} {[%emt 00:00:27]} Nf8 {[%clk 01:26:24]}
{[%emt 00:01:29]} 12. c4 {[%clk 01:27:16]} {[%emt 00:05:08]} g6 {[%clk
01:11:36]} {[%emt 00:15:17]} 13. Nc3 {[%clk 01:19:29]} {[%emt 00:08:17]} Be6
{[%clk 00:54:48]} {[%emt 00:17:18]} 14. Rhe1 {[%clk 01:00:00]} {[%emt
00:20:00]} Bg4 {[%clk 00:34:56]} {[%emt 00:20:22]} 15. Ne2 {[%clk 00:31:53]}
{[%emt 00:28:37]} Bb4 {[%clk 00:24:51]} {[%emt 00:10:34]} 16. Bd2 {[%clk
00:28:40]} {[%emt 00:03:44]} Bxd2+ {[%clk 00:24:32]} {[%emt 00:00:49]} 17. Qxd2
{[%clk 00:27:52]} {[%emt 00:01:18]} Bxe2 {[%clk 00:22:10]} {[%emt 00:02:53]} 18.
Bxe2 {[%clk 00:28:07]} {[%emt 00:00:14]} Qc7 {[%clk 00:20:53]} {[%emt
00:01:46]} 19. Bf3 {[%clk 00:24:51]} {[%emt 00:03:46]} Ne6 {[%clk 00:17:47]}
{[%emt 00:03:37]} 20. g3 {[%clk 00:23:28]} {[%emt 00:01:53]} Rad8 {[%clk
00:17:13]} {[%emt 00:01:04]} 21. Qc3 {[%clk 00:22:28]} {[%emt 00:01:29]} Ng5
{[%clk 00:15:29]} {[%emt 00:02:14]} 22. Bg2 {[%clk 00:21:25]} {[%emt 00:01:34]}
f5 {[%clk 00:13:34]} {[%emt 00:02:25]} 23. Rxe8+ {[%clk 00:14:45]} {[%emt
00:07:10]} 1/2-1/2

[Event "Top 12 Féminin 2026"]
[Site "Asnières-sur-Seine, France"]
[Date "2026.05.17"]
[Round "5.1"]
[White "Kosteniuk, Alexandra"]
[Black "Bulmaga, Irina"]
[Result "1-0"]
[TimeControl "1h30 / 40 moves + 30m + 30sec/move"]
[WhiteTitle "GM"]
[BlackTitle "IM"]
[WhiteFideId "-"]
[BlackFideId "-"]
[WhiteElo "2491"]
[BlackElo "2361"]

1. d4 {[%clk 01:30:55]} {[%emt 00:00:04]} Nf6 {[%clk 01:30:52]} {[%emt
00:00:08]} 2. Nf3 {[%clk 01:31:21]} {[%emt 00:00:05]} e6 {[%clk 01:31:10]}
{[%emt 00:00:13]} 3. e3 {[%clk 01:31:44]} {[%emt 00:00:07]} b6 {[%clk
01:31:24]} {[%emt 00:00:15]} 4. Bd3 {[%clk 01:32:00]} {[%emt 00:00:14]} Bb7
{[%clk 01:31:44]} {[%emt 00:00:10]} 5. O-O {[%clk 01:32:08]} {[%emt 00:00:22]}
d5 {[%clk 01:31:53]} {[%emt 00:00:21]} 6. b3 {[%clk 01:31:54]} {[%emt
00:00:44]} Nbd7 {[%clk 01:31:55]} {[%emt 00:00:27]} 7. Bb2 {[%clk 01:31:49]}
{[%emt 00:00:36]} Bd6 {[%clk 01:31:40]} {[%emt 00:00:45]} 8. Qe2 {[%clk
01:25:46]} {[%emt 00:06:34]} a6 {[%clk 01:28:32]} {[%emt 00:03:37]} 9. a4
{[%clk 01:24:21]} {[%emt 00:01:55]} O-O {[%clk 01:26:59]} {[%emt 00:02:03]} 10.
Ne5 {[%clk 01:21:29]} {[%emt 00:03:23]} Ne4 {[%clk 01:14:27]} {[%emt 00:13:01]}
11. Nxd7 {[%clk 01:11:51]} {[%emt 00:10:08]} Qxd7 {[%clk 01:13:57]} {[%emt
00:01:00]} 12. a5 {[%clk 01:08:42]} {[%emt 00:03:39]} b5 {[%clk 00:53:02]}
{[%emt 00:21:25]} 13. f3 {[%clk 01:08:39]} {[%emt 00:00:32]} f5 {[%clk
00:34:20]} {[%emt 00:19:12]} 14. c4 {[%clk 01:08:56]} {[%emt 00:00:14]} bxc4
{[%clk 00:26:08]} {[%emt 00:08:41]} 15. bxc4 {[%clk 01:09:15]} {[%emt
00:00:11]} dxc4 {[%clk 00:21:04]} {[%emt 00:05:34]} 16. Bxc4 {[%clk 01:09:07]}
{[%emt 00:00:38]} Nf6 {[%clk 00:20:14]} {[%emt 00:01:20]} 17. Nc3 {[%clk
00:57:39]} {[%emt 00:11:58]} Kh8 {[%clk 00:20:34]} {[%emt 00:00:09]} 18. Ba3
{[%clk 00:54:28]} {[%emt 00:03:42]} f4 {[%clk 00:17:00]} {[%emt 00:04:04]} 19.
Na4 {[%clk 00:51:50]} {[%emt 00:03:08]} fxe3 {[%clk 00:15:56]} {[%emt
00:01:34]} 20. Nc5 {[%clk 00:51:37]} {[%emt 00:00:44]} Bxc5 {[%clk 00:15:28]}
{[%emt 00:00:57]} 21. Bxc5 {[%clk 00:52:02]} {[%emt 00:00:05]} Rfe8 {[%clk
00:14:43]} {[%emt 00:01:15]} 22. Qxe3 {[%clk 00:52:13]} {[%emt 00:00:18]} Nd5
{[%clk 00:11:48]} {[%emt 00:03:25]} 23. Qe5 {[%clk 00:50:48]} {[%emt 00:01:56]}
Bc6 {[%clk 00:11:49]} {[%emt 00:00:29]} 24. Rfe1 {[%clk 00:49:39]} {[%emt
00:01:38]} Bb5 {[%clk 00:11:42]} {[%emt 00:00:37]} 25. Bb3 {[%clk 00:49:31]}
{[%emt 00:00:39]} Rab8 {[%clk 00:10:21]} {[%emt 00:01:51]} 26. Bc2 {[%clk
00:48:57]} {[%emt 00:01:04]} Nf6 {[%clk 00:09:48]} {[%emt 00:01:03]} 27. Rac1
{[%clk 00:47:32]} {[%emt 00:01:55]} Qf7 {[%clk 00:07:08]} {[%emt 00:03:09]} 28.
Bb1 {[%clk 00:46:52]} {[%emt 00:01:10]} Rbd8 {[%clk 00:06:15]} {[%emt
00:01:24]} 29. Qf4 {[%clk 00:46:28]} {[%emt 00:00:54]} Qd7 {[%clk 00:04:18]}
{[%emt 00:02:27]} 30. Qh4 {[%clk 00:46:16]} {[%emt 00:00:42]} Qf7 {[%clk
00:02:31]} {[%emt 00:02:17]} 31. Re5 {[%clk 00:45:11]} {[%emt 00:01:35]} Rd5
{[%clk 00:01:28]} {[%emt 00:01:33]} 32. Bb4 {[%clk 00:37:58]} {[%emt 00:07:43]}
Rxe5 {[%clk 00:00:38]} {[%emt 00:01:20]} 33. dxe5 {[%clk 00:38:22]} {[%emt
00:00:05]} g5 {[%clk 00:01:05]} {[%emt 00:00:04]} 34. Qxg5 {[%clk 00:36:43]}
{[%emt 00:02:09]} Nd5 {[%clk 00:01:32]} {[%emt 00:00:02]} 35. Bd2 {[%clk
00:36:32]} {[%emt 00:00:41]} Rg8 {[%clk 00:00:35]} {[%emt 00:01:27]} 36. Qh6
{[%clk 00:34:20]} {[%emt 00:02:42]} c6 {[%clk 00:00:49]} {[%emt 00:00:17]} 37.
Bg5 {[%clk 00:33:16]} {[%emt 00:01:33]} Qg7 {[%clk 00:00:44]} {[%emt 00:00:35]}
38. Qh4 {[%clk 00:29:04]} {[%emt 00:04:42]} Qa7+ {[%clk 00:01:13]} {[%emt
00:00:02]} 39. Kh1 {[%clk 00:29:22]} {[%emt 00:00:12]} Rg7 {[%clk 00:01:03]}
{[%emt 00:00:40]} 40. Be4 {[%clk 00:26:16]} {[%emt 00:03:37]} Kg8 {[%clk
00:00:55]} {[%emt 00:00:38]} 41. Qh6 {[%clk 00:22:02]} {[%emt 00:04:43]} Qd7
{[%clk 00:29:36]} {[%emt 00:01:50]} 42. h4 {[%clk 00:51:55]} {[%emt 00:00:37]}
Be2 {[%clk 00:27:51]} {[%emt 00:02:15]} 43. Rc2 {[%clk 00:49:58]} {[%emt
00:02:28]} Bf1 {[%clk 00:27:37]} {[%emt 00:00:43]} 44. Rb2 {[%clk 00:49:30]}
{[%emt 00:00:58]} Bb5 {[%clk 00:27:56]} {[%emt 00:00:11]} 45. Rd2 {[%clk
00:49:19]} {[%emt 00:00:41]} c5 {[%clk 00:25:54]} {[%emt 00:02:32]} 46. Bf6
{[%clk 00:36:00]} {[%emt 00:13:49]} Rf7 {[%clk 00:25:27]} {[%emt 00:00:56]} 47.
Qg5+ {[%clk 00:35:40]} {[%emt 00:00:51]} Kf8 {[%clk 00:25:51]} {[%emt
00:00:06]} 48. Rxd5 {[%clk 00:34:46]} {[%emt 00:01:24]} exd5 {[%clk 00:26:01]}
{[%emt 00:00:19]} 49. Bf5 {[%clk 00:35:10]} {[%emt 00:00:07]} Qc7 {[%clk
00:21:20]} {[%emt 00:05:10]} 50. e6 {[%clk 00:33:57]} {[%emt 00:01:43]} Re7
{[%clk 00:21:15]} {[%emt 00:00:34]} 51. Bg4 {[%clk 00:26:38]} {[%emt 00:07:49]}
d4 {[%clk 00:19:48]} {[%emt 00:01:57]} 52. Be5 {[%clk 00:26:40]} {[%emt
00:00:28]} 1-0

[Event "Top 12 Féminin 2026"]
[Site "Asnières-sur-Seine, France"]
[Date "2026.05.17"]
[Round "5.2"]
[White "Bensdorp-De Labaca, Marlies"]
[Black "Cramling, Pia"]
[Result "0-1"]
[TimeControl "1h30 / 40 moves + 30m + 30sec/move"]
[WhiteTitle "WIM"]
[BlackTitle "GM"]
[WhiteFideId "-"]
[BlackFideId "-"]
[WhiteElo "2175"]
[BlackElo "2384"]

1. d4 {[%clk 01:30:58]} {[%emt 00:00:02]} Nf6 {[%clk 01:27:27]} {[%emt
00:03:22]} 2. c4 {[%clk 01:31:24]} {[%emt 00:00:14]} e6 {[%clk 01:27:49]}
{[%emt 00:00:07]} 3. Nf3 {[%clk 01:31:51]} {[%emt 00:00:04]} Bb4+ {[%clk
01:27:42]} {[%emt 00:00:37]} 4. Bd2 {[%clk 01:29:08]} {[%emt 00:03:13]} c5
{[%clk 01:26:57]} {[%emt 00:01:15]} 5. dxc5 {[%clk 01:28:12]} {[%emt 00:01:26]}
Bxc5 {[%clk 01:27:03]} {[%emt 00:00:23]} 6. e3 {[%clk 01:28:10]} {[%emt
00:00:33]} O-O {[%clk 01:26:17]} {[%emt 00:01:15]} 7. Nc3 {[%clk 01:25:46]}
{[%emt 00:02:55]} Nc6 {[%clk 01:19:13]} {[%emt 00:07:34]} 8. Bd3 {[%clk
01:22:05]} {[%emt 00:04:10]} d5 {[%clk 01:13:57]} {[%emt 00:05:47]} 9. O-O
{[%clk 01:15:06]} {[%emt 00:07:29]} dxc4 {[%clk 01:05:57]} {[%emt 00:08:29]} 10.
Bxc4 {[%clk 01:15:33]} {[%emt 00:00:05]} e5 {[%clk 01:06:13]} {[%emt 00:00:13]}
11. e4 {[%clk 01:10:56]} {[%emt 00:05:08]} Bg4 {[%clk 00:59:32]} {[%emt
00:07:10]} 12. Be2 {[%clk 01:09:33]} {[%emt 00:01:54]} h6 {[%clk 00:57:31]}
{[%emt 00:02:30]} 13. h3 {[%clk 01:06:19]} {[%emt 00:03:45]} Be6 {[%clk
00:54:48]} {[%emt 00:03:12]} 14. Bb5 {[%clk 00:56:40]} {[%emt 00:10:10]} Nd4
{[%clk 00:44:37]} {[%emt 00:10:40]} 15. Bd3 {[%clk 00:49:40]} {[%emt 00:07:30]}
Nb3 {[%clk 00:35:58]} {[%emt 00:09:09]} 16. axb3 {[%clk 00:50:06]} {[%emt
00:00:05]} Qxd3 {[%clk 00:36:22]} {[%emt 00:00:06]} 17. Nxe5 {[%clk 00:50:24]}
{[%emt 00:00:12]} Qg3 {[%clk 00:34:06]} {[%emt 00:02:45]} 18. Nc4 {[%clk
00:31:49]} {[%emt 00:19:07]} Bxh3 {[%clk 00:32:40]} {[%emt 00:01:55]} 19. Qf3
{[%clk 00:31:19]} {[%emt 00:01:00]} Qxf3 {[%clk 00:33:01]} {[%emt 00:00:09]} 20.
gxf3 {[%clk 00:31:44]} {[%emt 00:00:05]} Bxf1 {[%clk 00:33:09]} {[%emt
00:00:22]} 21. Kxf1 {[%clk 00:32:06]} {[%emt 00:00:08]} Rfd8 {[%clk 00:26:27]}
{[%emt 00:07:11]} 22. Ke2 {[%clk 00:32:06]} {[%emt 00:00:31]} Rac8 {[%clk
00:25:25]} {[%emt 00:01:31]} 23. Ne3 {[%clk 00:31:10]} {[%emt 00:01:28]} a6
{[%clk 00:23:12]} {[%emt 00:02:42]} 24. Nf5 {[%clk 00:29:38]} {[%emt 00:02:02]}
Kh7 {[%clk 00:23:01]} {[%emt 00:00:41]} 25. Rg1 {[%clk 00:29:18]} {[%emt
00:00:51]} Bf8 {[%clk 00:23:19]} {[%emt 00:00:11]} 26. Be3 {[%clk 00:25:15]}
{[%emt 00:04:34]} g6 {[%clk 00:19:45]} {[%emt 00:04:02]} 27. Nd4 {[%clk
00:25:02]} {[%emt 00:00:45]} Bg7 {[%clk 00:19:51]} {[%emt 00:00:23]} 28. Nc2
{[%clk 00:24:43]} {[%emt 00:00:49]} Nd7 {[%clk 00:19:48]} {[%emt 00:00:33]} 29.
Bd4 {[%clk 00:22:27]} {[%emt 00:02:47]} Nc5 {[%clk 00:18:57]} {[%emt 00:01:19]}
30. Bxg7 {[%clk 00:21:37]} {[%emt 00:01:21]} Kxg7 {[%clk 00:19:21]} {[%emt
00:00:06]} 31. Ne3 {[%clk 00:18:46]} {[%emt 00:03:21]} Nxb3 {[%clk 00:18:23]}
{[%emt 00:01:27]} 32. Ned5 {[%clk 00:18:40]} {[%emt 00:00:37]} Na5 {[%clk
00:16:49]} {[%emt 00:02:02]} 33. Rd1 {[%clk 00:17:45]} {[%emt 00:01:26]} Nc4
{[%clk 00:15:54]} {[%emt 00:01:25]} 34. Rb1 {[%clk 00:17:46]} {[%emt 00:00:30]}
Rc6 {[%clk 00:15:56]} {[%emt 00:00:27]} 35. b3 {[%clk 00:17:26]} {[%emt
00:00:50]} Nb6 {[%clk 00:15:57]} {[%emt 00:00:28]} 36. Kd3 {[%clk 00:16:20]}
{[%emt 00:01:38]} Rxc3+ {[%clk 00:14:38]} {[%emt 00:01:48]} 37. Kxc3 {[%clk
00:16:43]} {[%emt 00:00:07]} Nxd5+ {[%clk 00:15:04]} {[%emt 00:00:04]} 38. exd5
{[%clk 00:17:07]} {[%emt 00:00:06]} Rxd5 {[%clk 00:15:31]} {[%emt 00:00:03]} 39.
Re1 {[%clk 00:17:18]} {[%emt 00:00:19]} Rf5 {[%clk 00:14:32]} {[%emt 00:01:29]}
40. Re3 {[%clk 00:16:48]} {[%emt 00:01:01]} h5 {[%clk 00:13:46]} {[%emt
00:01:15]} 0-1